[Event "Hungarian Youth-ch U18 2022"]
[Site "Eger"]
[Date "2022.07.27"]
[Round "5.6"]
[White "Somogyi, Barbara"]
[Black "Ivan, Reka Gyongyver"]
[Result "1/2-1/2"]
[ECO "B10"]
[WhiteElo "1682"]
[BlackElo "1877"]
[Annotator "NA RC COMBH"]
[PlyCount "109"]
[EventDate "2022.07.21"]
[EventType "tourn"]
[EventCountry "HUN"]
[SourceTitle "playchess.com"]
[Source "ChessBase"]
[SourceQuality "1"]
[TimeControl "40/5400+30:1800+30"]

{[%evp 8,108,10,8,32767,32767,32767,32767,32767,32767,32767,32767,0,32767,-2,-84,-92,32767,-75,-118,-86,-97,-73,-151,-141,-139,-101,-154,-103,-107,-109,-106,32767,32767,32767,-3,0,-3,32767,0,0,32767,32767,-62,-49,32767,-47,-48,32767,-43,-48,32767,32767,32767,32767,32767,32767,-50,-50,-55,-54,-61,32767,-59,0,32767,32767,-58,-64,-63,-44,-51,-44,-44,32767,-44,-23,-43,-30,-28,-33,-24,-20,32767,32767,32767,32767,32767,32767,32767,32767,32767,-16,-23,-22,32767,32767,32767,32767,32767,32767,32767,-37]} 1. e4 {[%emt 0:00:32]} c6 {[%emt 0:00:43]} 2. c4 {[%emt 0:00:13]} d5 {[%emt 0:00:17]} 3. exd5 {[%emt 0:00:16]} cxd5 {[%emt 0:00:13]} 4. cxd5 {[%emt 0:00:09]} Nf6 {[%emt 0:00:16]} 5. Bb5+ {[%emt 0:00:26]} Nbd7 {[%emt 0:00:38]} 6. Nc3 {[%emt 0:01:03]} g6 {[%emt 0:00:43]} 7. d4 {[%emt 0:01:52]} Bg7 {[%emt 0:01:06]} 8. Nf3 {[%emt 0:05:55]} O-O {[%emt 0:00:57]} 9. Bxd7 {[%emt 0:05:05] was the old line (9.0-0).} Qxd7 {[%emt 0:01:20]} 10. Ne5 {[%emt 0:02:22]} Qd6 {[%emt 0:00:53] [#]} 11. f4 $146 {[%emt 0:08:42]} ({Predecessor:} 11. Qf3 $1 $11 Qb4 12. O-O Qxd4 13. Re1 Bf5 14. Bg5 Rad8 15. Rad1 Qb4 16. Qe2 h6 17. Be3 {1-0 (44) Can,I (2374)-Erdogan,A (2116) Konya 2019}) 11... Nxd5 {[%emt 0:04:56]} 12. O-O {[%emt 0:01:55]} Bf5 {[%emt 0:05:19]} 13. Nxd5 {[%emt 0:09:22]} (13. Rf2 $142) 13... Qxd5 {[%emt 0:00:33]} 14. Be3 {[%emt 0:02:58]} Rac8 {[%emt 0:03:57]} 15. Qa4 {[%emt 0:07:20]} ({Better is} 15. Qb3 Be4 16. Qxd5 Bxd5 17. Rfc1) 15... Rc2 {[%emt 0:05:02]} 16. Rf2 {[%emt 0:05:34]} Rxf2 {[%emt 0:02:35]} 17. Kxf2 {[%emt 0:03:01]} Rc8 {[%emt 0:03:02]} 18. Rc1 {[%emt 0:02:57]} Rxc1 {[%emt 0:02:22]} 19. Bxc1 {[%emt 0:00:49]} Be4 {[%emt 0:03:10]} 20. Qe8+ {[%emt 0:07:46]} Bf8 {[%emt 0:01:51]} 21. Nd7 $1 {[%emt 0:05:43]} Qxd4+ {[%emt 0:00:08]} 22. Kg3 {[%emt 0:04:29]} Qg7 {[%emt 0:00:41]} 23. Be3 {[%emt 0:05:50]} b6 {[%emt 0:04:14]} 24. a4 {[%emt 0:02:51]} Bc6 {[%emt 0:01:07]} 25. Qxf8+ {[%emt 0:00:29]} Qxf8 {[%emt 0:00:06]} 26. Nxf8 {[%emt 0:00:07]} Kxf8 {[%emt 0:00:04]} 27. b3 {[%emt 0:01:04]} Bd5 {[%emt 0:02:42]} 28. b4 {[%emt 0:02:06]} Bc6 {[%emt 0:02:56]} 29. a5 {[%emt 0:01:16]} bxa5 {[%emt 0:00:09]} 30. bxa5 {[%emt 0:00:08]} a6 {[%emt 0:00:04]} 31. Kf2 {[%emt 0:02:52]} h5 {[%emt 0:01:06]} 32. g3 {[%emt 0:02:14]} Ke8 {[%emt 0:00:26]} 33. Bb6 {[%emt 0:01:32]} Kd7 {[%emt 0:00:24]} 34. Ba7 {[%emt 0:02:19]} Ke6 {[%emt 0:02:37]} 35. Bc5 {[%emt 0:00:57]} Kd7 {[%emt 0:00:30]} (35... Kf6 $15) 36. Ba7 {[%emt 0:00:47]} Kd6 {[%emt 0:00:28]} 37. Bb8+ {[%emt 0:00:57]} Kd5 {[%emt 0:00:09]} 38. Ke3 {[%emt 0:02:09]} f6 {[%emt 0:00:49]} 39. Bc7 {[%emt 0:00:54]} e5 {[%emt 0:00:34]} 40. fxe5 {[%emt 0:00:00]} fxe5 {[%emt 0:00:00]} 41. Bb6 {[%emt 0:02:49]} Kc4 {[%emt 0:01:30]} 42. Bd8 {[%emt 0:00:58]} e4 {[%emt 0:03:04]} 43. Bf6 {[%emt 0:01:36]} Kb4 {[%emt 0:00:22]} 44. Bd8 $1 {[%emt 0:00:19]} Kc3 {[%emt 0:00:07]} 45. Be7 {[%emt 0:02:33]} Kc2 {[%emt 0:00:39]} 46. h4 {[%emt 0:01:47]} Kd1 {[%emt 0:01:06]} 47. Bb4 {[%emt 0:00:53]} Bb7 {[%emt 0:00:35]} 48. Bc3 {[%emt 0:00:51]} Kc2 {[%emt 0:00:08]} 49. Be1 {[%emt 0:00:29]} Kb3 {[%emt 0:00:12]} 50. Bd2 $11 {[%emt 0:01:00]} Kc4 {[%emt 0:00:09]} 51. Be1 {[%emt 0:01:04]} Kd5 {[%emt 0:00:09]} 52. Bc3 {[%emt 0:01:07]} Bc6 {[%emt 0:00:25]} 53. Bd4 {[%emt 0:01:54]} Ke6 {[%emt 0:00:53]} 54. Bb6 {[%emt 0:00:21]} Kf5 {[%emt 0:00:11]} 55. Bc7 {[%emt 0:00:53]} 1/2-1/2

[Event "Hungarian Youth-ch U18 2022"]
[Site "Eger"]
[Date "2022.07.27"]
[Round "5.7"]
[White "Koltai, Dora"]
[Black "Kiss, Eniko"]
[Result "1-0"]
[ECO "B54"]
[WhiteElo "1764"]
[BlackElo "1646"]
[Annotator "NA RC COMBH"]
[PlyCount "121"]
[EventDate "2022.07.21"]
[EventType "tourn"]
[EventCountry "HUN"]
[SourceTitle "playchess.com"]
[Source "ChessBase"]
[SourceQuality "1"]
[TimeControl "40/5400+30:1800+30"]

1. e4 {[%emt 0:00:33]} c5 {[%emt 0:01:47]} 2. Nf3 {[%emt 0:00:17]} d6 {[%emt 0:00:07]} 3. d4 {[%emt 0:00:04]} cxd4 {[%emt 0:00:03]} 4. Nxd4 {[%emt 0:00:05]} g6 {[%emt 0:00:16]} 5. c4 {[%emt 0:01:02]} Bg7 {[%emt 0:00:16]} 6. Nc3 {[%emt 0:01:04]} Nc6 {[%emt 0:00:13]} 7. Be3 {[%emt 0:00:19]} Nf6 {[%emt 0:00:19]} 8. Be2 {[%emt 0:01:04]} O-O {[%emt 0:00:10]} 9. f3 {[%emt 0:01:35]} Re8 {[%emt 0:01:42]} 10. Qd2 {[%emt 0:02:03]} a6 {[%emt 0:01:58]} 11. O-O {[%emt 0:01:45]} e6 {[%emt 0:02:54]} 12. Nc2 {[%emt 0:07:47]} Ne7 {[%emt 0:04:54]} 13. Rfd1 {[%emt 0:02:42]} d5 {[%emt 0:01:08]} 14. cxd5 {[%emt 0:05:29]} exd5 {[%emt 0:01:13]} 15. exd5 {[%emt 0:02:17]} Bf5 {[%emt 0:08:21]} 16. Rac1 {[%emt 0:09:06]} Nexd5 {[%emt 0:06:46]} 17. Nxd5 {[%emt 0:24:45]} Qxd5 {[%emt 0:14:42]} 18. Nd4 {[%emt 0:10:13]} Rad8 {[%emt 0:12:19]} 19. Bc4 {[%emt 0:04:31]} Qe5 {[%emt 0:09:17]} 20. Bf4 {[%emt 0:02:05]} Qe7 {[%emt 0:12:33]} 21. Nxf5 {[%emt 0:06:13]} gxf5 {[%emt 0:00:20]} 22. Bd6 {[%emt 0:05:28]} Qe3+ {[%emt 0:07:10]} 23. Qxe3 {[%emt 0:02:46]} Rxe3 {[%emt 0:00:06]} 24. Bc5 {[%emt 0:03:04]} Ree8 {[%emt 0:00:56]} 25. b3 {[%emt 0:01:35]} Nd7 {[%emt 0:02:07]} 26. Bf2 {[%emt 0:01:31]} Ne5 {[%emt 0:00:53]} 27. Bd5 {[%emt 0:00:44]} b5 {[%emt 0:01:31]} 28. Bb6 {[%emt 0:01:23]} Rb8 {[%emt 0:00:44]} 29. Bc7 {[%emt 0:00:26]} Rbc8 {[%emt 0:01:26]} 30. Bb7 {[%emt 0:00:12]} Bh6 {[%emt 0:01:10]} 31. Rc3 {[%emt 0:01:39]} b4 {[%emt 0:01:05]} 32. Rc2 {[%emt 0:00:40]} Be3+ {[%emt 0:00:27]} 33. Kf1 {[%emt 0:00:30]} Bb6 {[%emt 0:02:34]} 34. Bxc8 {[%emt 0:00:26]} Rxc8 {[%emt 0:00:04]} 35. Rd8+ {[%emt 0:00:13]} Rxd8 {[%emt 0:00:24]} 36. Bxd8 {[%emt 0:00:05]} Bxd8 {[%emt 0:00:30]} 37. Rc8 {[%emt 0:00:04]} Nc6 {[%emt 0:02:46]} 38. Rxc6 {[%emt 0:00:06]} Kg7 {[%emt 0:00:07]} 39. Rxa6 {[%emt 0:00:06]} Be7 {[%emt 0:00:13]} 40. Ke2 {[%emt 0:00:00]} Bf8 {[%emt 0:00:00]} 41. Kd3 {[%emt 0:02:23]} f6 {[%emt 0:05:07]} 42. Kc4 {[%emt 0:00:49]} Kg6 {[%emt 0:00:24]} 43. Rb6 {[%emt 0:00:33]} Kg5 {[%emt 0:00:13]} 44. Rxb4 {[%emt 0:00:17]} Bxb4 {[%emt 0:00:07]} 45. Kxb4 {[%emt 0:00:08]} Kf4 {[%emt 0:00:02]} 46. a4 {[%emt 0:00:11]} Ke3 {[%emt 0:00:05]} 47. a5 {[%emt 0:00:05]} Kf2 {[%emt 0:00:03]} 48. a6 {[%emt 0:00:04]} Kxg2 {[%emt 0:00:04]} 49. a7 {[%emt 0:00:04]} Kxh2 {[%emt 0:01:13]} 50. a8=Q {[%emt 0:00:10]} Kg3 {[%emt 0:00:05]} 51. Qg8+ {[%emt 0:00:20]} Kxf3 {[%emt 0:00:06]} 52. Qxh7 {[%emt 0:00:09]} f4 {[%emt 0:00:36]} 53. Qh3+ {[%emt 0:00:04]} Kf2 {[%emt 0:00:19]} 54. Qh2+ {[%emt 0:00:10]} Kf3 {[%emt 0:00:07]} 55. Qg1 {[%emt 0:00:04]} Ke2 {[%emt 0:00:21]} 56. Qg2+ {[%emt 0:00:11]} Ke3 {[%emt 0:00:09]} 57. Qf1 {[%emt 0:00:06]} f3 {[%emt 0:00:15]} 58. Kc4 {[%emt 0:00:15]} f5 {[%emt 0:00:09]} 59. b4 {[%emt 0:00:10]} f2 {[%emt 0:00:12]} 60. b5 {[%emt 0:00:14]} f4 {[%emt 0:00:05]} 61. Qd3# {[%emt 0:00:08]} 1-0

[Event "Hungarian Youth-ch U18 2022"]
[Site "Eger"]
[Date "2022.07.29"]
[Round "7.1"]
[White "Daroczi, Donat"]
[Black "Forgacs, Attila Jr."]
[Result "1/2-1/2"]
[ECO "C45"]
[WhiteElo "2163"]
[BlackElo "2215"]
[Annotator "TA"]
[PlyCount "49"]
[EventDate "2022.07.21"]
[EventType "tourn"]
[EventCountry "HUN"]
[SourceTitle "playchess.com"]
[Source "ChessBase"]
[SourceQuality "1"]
[TimeControl "40/5400+30:1800+30"]

{[%evp 17,49,-3,-5,0,0,-7,0,0,0,0,0,-28,27,29,21,21,24,19,46,0,0,0,9,-17,0,0,0,0,0,0,0,0,-4,-35]} 1. e4 {[%emt 0:00:53]} e5 {[%emt 0:00:37]} 2. Nf3 {[%emt 0:00:19]} Nc6 {[%emt 0:00:06]} 3. d4 {[%emt 0:00:08]} exd4 {[%emt 0:00:05]} 4. Nxd4 {[%emt 0:00:06]} Nf6 {[%emt 0:00:06]} 5. Nxc6 {[%emt 0:00:12]} bxc6 {[%emt 0:00:11]} 6. e5 {[%emt 0:00:07]} Qe7 {[%emt 0:00:08]} 7. Qe2 {[%emt 0:00:06]} Nd5 {[%emt 0:00:06]} 8. c4 {[%emt 0:00:05]} Ba6 {[%emt 0:00:07]} 9. Nd2 {[%emt 0:00:05]} g6 {[%emt 0:11:59]} 10. Nf3 {[%emt 0:00:27] C45: Scotch Game.} Qb4+ {[%emt 0:01:59]} 11. Kd1 {[%emt 0:00:07]} Bg7 {[%emt 0:02:42]} 12. Qd2 {[%emt 0:00:11]} Qxd2+ {[%emt 0:02:11]} 13. Bxd2 {[%emt 0:00:02]} Nb6 {[%emt 0:02:09]} 14. b3 {[%emt 0:00:06]} O-O-O {[%emt 0:07:36]} (14... O-O $142) 15. Kc2 $11 {[%emt 0:23:24]} d5 {[%emt 0:04:56]} 16. cxd5 {[%emt 0:07:27]} Bxf1 {[%emt 0:00:15]} 17. Rhxf1 {[%emt 0:00:18]} cxd5 {[%emt 0:01:07] [#]} 18. Be3 $146 {[%emt 0:08:52]} (18. Rae1 $14) ({Predecessor:} 18. Rfe1 f6 19. exf6 Bxf6 20. Rac1 Rdf8 21. Kd3 Rf7 22. Rc2 Rg8 23. h3 g5 24. Be3 {½-½ (62) Bulanov,D (2376)-Vuilleumier,A (2326) Eilat 2012}) 18... Kb7 {[%emt 0:11:45] The position is equal.} 19. Bd4 {[%emt 0:04:50]} Rc8 {[%emt 0:02:23]} 20. b4 {[%emt 0:01:54]} Nc4 {[%emt 0:02:56]} 21. Rfe1 {[%emt 0:09:12]} Rhe8 {[%emt 0:08:46]} 22. e6 {[%emt 0:05:33]} Bxd4 {[%emt 0:01:07]} 23. Nxd4 {[%emt 0:01:55]} fxe6 {[%emt 0:00:15]} 24. Nxe6 {[%emt 0:00:22]} a5 {[%emt 0:05:18]} 25. b5 {[%emt 0:07:52] An even fight not without its subleties.  Weighted Error Value: White=0.08 (flawless) /Black=0.09 (flawless)} 1/2-1/2

[Event "Hungarian Youth-ch U18 2022"]
[Site "Eger"]
[Date "2022.07.29"]
[Round "7.2"]
[White "Baski, Barnabas"]
[Black "Juhasz, Agoston"]
[Result "0-1"]
[ECO "E09"]
[WhiteElo "2142"]
[BlackElo "2344"]
[Annotator "TA"]
[PlyCount "80"]
[EventDate "2022.07.21"]
[EventType "tourn"]
[EventCountry "HUN"]
[SourceTitle "playchess.com"]
[Source "ChessBase"]
[SourceQuality "1"]
[TimeControl "40/5400+30:1800+30"]

{[%evp 21,80,21,19,-16,-10,-9,-11,-11,-14,-14,-14,-11,0,-62,-50,-79,-20,-41,-40,-65,-52,-143,-142,-143,-143,-360,-334,-362,-363,-460,-272,-1249,-1207,-2220,-2150,-6333,-6544,-29983,-29984,-29993,-29994,-29994,-29992,-29995,-29991,-29991,0,-29995,0,-29991,-5255,-4882,-3313,-29976,-29977,-29977,-29978,-29990,-29991,-29990,-29957]} 1. c4 {[%emt 0:00:34]} e6 {[%emt 0:01:41]} 2. g3 {[%emt 0:00:49]} d5 {[%emt 0:00:35]} 3. Bg2 {[%emt 0:01:27]} Nf6 {[%emt 0:00:34]} 4. Nf3 {[%emt 0:01:53]} Be7 {[%emt 0:00:42]} 5. O-O {[%emt 0:01:34]} O-O {[%emt 0:00:33]} 6. d4 {[%emt 0:00:13]} Nbd7 {[%emt 0:01:18]} 7. Qc2 {[%emt 0:01:59]} c6 {[%emt 0:00:28][%cal Bc7c6,Bc6c5][%mdl 32]} 8. Nbd2 {[%emt 0:00:38]} b6 {[%emt 0:01:00]} 9. e4 {[%emt 0:01:03]} dxc4 {[%emt 0:00:38]} 10. Nxc4 {[%emt 0:02:36]} Bb7 {[%emt 0:00:46]} 11. Rd1 {[%emt 0:10:14]} c5 {[%emt 0:01:05]} 12. Ng5 {[%emt 0:07:44] E09: Closed Catalan: Main Line: 7 Qc2 c6 8 Nbd2.} h6 {[%emt 0:03:31] aiming for ...cxd4.} 13. e5 {[%emt 0:02:04]} Bxg2 {[%emt 0:00:49]} 14. exf6 {[%emt 0:01:06] [#] The position is equal.} Nxf6 {[%emt 0:00:39] Threatens to win with ...Bb7. Dancing on a razor blade.} 15. Kxg2 {[%emt 0:01:52][%cal Od4c5]} hxg5 {[%emt 0:00:30]} 16. dxc5 {[%emt 0:00:36]} Qc7 $36 {[%emt 0:02:40][%mdl 2048] White is under pressure.} 17. cxb6 {[%emt 0:05:36]} ({White should try} 17. Bxg5 $11 Rfc8 18. Bxf6 Bxf6 19. Nd6) 17... axb6 $15 {[%emt 0:01:19]} 18. Qe2 {[%emt 0:04:06]} Nd5 {[%emt 0:03:57]} (18... b5 $17 19. Ne5 Ra4) 19. Ne3 {[%emt 0:08:25]} Nb4 {[%emt 0:13:33]} 20. a3 {[%emt 0:00:36]} Nc6 $1 {[%emt 0:08:33] [#] Black is more active.} 21. Ng4 $146 {[%emt 0:10:16] Black continues to play with concentration.} (21. Nc2 $15) ({Predecessor:} 21. f3 Qb7 22. b3 Rfd8 23. Rxd8+ Rxd8 24. Bb2 Nd4 25. Bxd4 Rxd4 26. Rd1 Rxd1 27. Qxd1 Bxa3 {½-½ (65) Schepetkova,M (2244)-Garifullina,L (2131) Yaroslavl 2018}) 21... Rad8 $1 $17 {[%emt 0:07:29] Hoping for ...Rxd1.} 22. Rxd8 {[%emt 0:03:01]} Qxd8 {[%emt 0:04:04]} 23. Qe4 {[%emt 0:02:34] [#]} (23. f3 $17) 23... Qd6 $1 $19 {[%emt 0:04:39] And now ...f5 would win.} 24. Ne3 {[%emt 0:01:34]} f5 {[%emt 0:01:53]} 25. Qa4 {[%emt 0:01:42]} f4 {[%emt 0:02:29]} (25... Nd4 $142 26. Kh1 f4) 26. Ng4 $2 {[%emt 0:01:16]} (26. Qe4 fxe3 27. Bxe3) 26... Qd5+ {[%emt 0:08:31]} 27. Kg1 {[%emt 0:00:38]} b5 {[%emt 0:03:36]} 28. Qc2 {[%emt 0:01:40]} Nd4 {[%emt 0:01:28]} 29. Nh6+ {[%emt 0:00:47]} Kh8 {[%emt 0:00:29]} 30. Qg6 {[%emt 0:00:19]} Nf3+ {[%emt 0:17:22]} 31. Kf1 {[%emt 0:01:54]} Nxh2+ {[%emt 0:01:37]} 32. Kg1 {[%emt 0:02:34]} Nf3+ {[%emt 0:00:08]} 33. Kf1 {[%emt 0:00:06]} Nh2+ {[%emt 0:00:50]} 34. Kg1 {[%emt 0:00:08]} Nf3+ {[%emt 0:00:38]} 35. Kf1 {[%emt 0:00:02]} Ne5 {[%emt 0:01:21]} (35... Qd1+ $142 36. Kg2 fxg3 37. Bxg5 Qxa1 38. Nf7+ {[#]} Rxf7 $1 {[%mdl 512]} 39. Qxf7 Qg1+ 40. Kxf3 Qxf2+ 41. Kg4 Qxf7 42. Bxe7 Qxe7 43. Kxg3 Qf6 44. b4 g5 45. Kg4 Qf4+ 46. Kh3 Qf2 47. a4 Kh7 48. a5 Kg6 49. a6 Kh5 50. a7 g4#) 36. Qh5 {[%emt 0:02:09]} gxh6 {[%emt 0:00:37]} 37. Qxh6+ {[%emt 0:00:07]} Kg8 {[%emt 0:00:07] Black mates.} 38. gxf4 {[%emt 0:01:49]} gxf4 {[%emt 0:01:09]} 39. Bxf4 {[%emt 0:02:09]} Qc4+ {[%emt 0:00:47]} 40. Kg2 {[%emt 0:00:00]} Qe4+ {[%emt 0:00:00] Weighted Error Value: White=1.11/Black=0.62} 0-1